bitfinex-derivatives/quotes_ETHF0:USTF0_20251210
["timestamp","ask_amount","ask_price","bid_price","bid_amount"]
[1765382263699,3.30028767,3327.1,3327.0,0.5922]
[1765382264493,3.30028767,3327.1,3327.0,1.5905]
[1765382265392,3.30028767,3327.1,3327.0,0.5922]
[1765382266696,3.30028767,3327.1,3327.0,1.5905]
[1765382267599,3.30028767,3327.1,3327.0,2.6284]
[1765382268101,3.30028767,3327.1,3327.0,1.5905]
[1765382268802,3.30028767,3327.1,3327.0,0.5922]
[1765382271604,3.21168767,3327.1,3326.5,1.5941615]
[1765382271793,3.21168767,3327.1,3326.5,2.6320615]
[1765382272292,3.36196767,3327.1,3326.5,2.6320615]
[1765382272498,3.36196767,3327.1,3326.5,1.5941615]
[1765382272793,3.2078,3326.6,3326.5,0.5958615]
[1765382273395,3.2078,3326.6,3326.5,2.6320615]
[1765382276500,0.15031,3326.4,3326.0,3.20821294]
[1765382276705,3.2078,3326.1,3326.0,2.6284]
[1765382276900,3.2078,3326.1,3326.0,0.5922]
[1765382277301,3.2078,3326.1,3326.0,2.6284]
[1765382277504,3.2078,3326.1,3326.0,2.63191516]
[1765382278798,3.2078,3326.1,3326.0,2.51951516]
[1765382279107,3.2078,3326.5,3326.0,2.51951516]
[1765382279409,3.2078,3326.5,3326.4,1.886]
[1765382280304,3.2078,3326.9,3326.8,1.886]
[1765382280509,2.87021024,3326.9,3326.8,1.886]
[1765382280703,0.00388767,3327.1,3327.0,2.475]
[1765382281507,0.00388767,3327.1,3327.0,1.5495]
[1765382281908,0.00388767,3327.1,3326.6,1.61796085]
[1765382282111,2.52649596,3326.7,3326.5,0.589]
[1765382282324,2.52649596,3326.7,3325.9,1.61796085]
[1765382282525,3.2078,3326.1,3325.6,1.62247131]
[1765382282819,3.2078,3326.1,3325.6,0.00451046]
[1765382283617,3.2078,3326.1,3326.0,2.48171516]
[1765382285827,3.2078,3326.5,3326.4,0.9605]
[1765382286023,3.2078,3326.5,3326.0,0.59571516]
[1765382286628,3.2078,3326.1,3326.0,2.48171516]
[1765382287128,3.2078,3326.5,3326.4,0.9605]
[1765382287528,3.2078,3326.5,3326.0,0.59571516]
[1765382287831,2.52649596,3326.7,3326.0,2.48171516]
[1765382287832,3.2078,3326.1,3326.0,2.48171516]
[1765382289233,3.2078,3326.1,3325.6,0.91331046]
[1765382289427,3.5225,3325.7,3325.6,1.84751046]
[1765382289825,3.2078,3325.7,3325.6,1.84751046]
[1765382290223,3.2078,3325.7,3325.6,1.85138065]
[1765382290729,4.71541964,3325.7,3325.6,1.85138065]
[1765382290931,5.02051964,3325.7,3325.6,1.85138065]
[1765382291831,4.71541964,3325.7,3325.6,1.85138065]
[1765382292327,1.50761964,3326.1,3326.0,2.369]
[1765382292530,3.2078,3326.5,3326.0,2.369]
[1765382292729,4.71541964,3326.5,3326.4,1.843]
[1765382293522,5.08561964,3326.5,3326.4,1.843]
[1765382293721,5.44591964,3326.5,3326.0,0.526]
[1765382293927,1.86791964,3326.1,3326.0,2.369]
[1765382294122,5.07571964,3326.1,3326.0,2.369]
[1765382294534,5.43601964,3326.1,3326.0,1.4348]
[1765382295429,2.22821964,3326.1,3326.0,1.4348]
[1765382295831,6.94363928,3326.1,3326.0,0.526]
[1765382296532,0.6719,3325.7,3325.3,4.82576085]
[1765382296730,2.17951964,3325.7,3325.3,3.2078]
[1765382297037,0.6622,3325.6,3325.3,3.2078]
[1765382297837,0.6622,3325.6,3325.5,0.65442284]
[1765382299142,0.6622,3325.6,3325.5,0.00252284]
[1765382299638,4.71541964,3325.7,3325.2,0.00451046]
[1765382299639,2.11461964,3325.3,3325.2,0.00451046]
[1765382302238,6.83003928,3325.3,3325.2,0.00451046]
[1765382302433,6.83003928,3325.3,3324.5,2.20696085]
[1765382302434,6.37339928,3325.3,3324.5,2.20696085]
[1765382302742,1.78281964,3324.6,3324.5,2.432]
[1765382302937,1.78643876,3324.6,3324.5,2.432]
[1765382303843,0.00361912,3324.6,3324.5,2.432]
[1765382304240,1.51123876,3324.6,3324.5,2.432]
[1765382305139,1.77693876,3324.6,3324.5,2.432]
[1765382306337,1.51123876,3324.6,3324.5,2.432]
[1765382306537,1.74933876,3324.6,3324.5,2.432]
[1765382306738,1.51123876,3324.6,3324.5,2.432]
[1765382306938,1.74933876,3324.6,3324.5,2.432]
[1765382307738,1.1134,3324.3,3324.2,0.00451046]
[1765382307933,1.1134,3324.3,3324.0,3.7338]
[1765382307934,1.6228,3324.1,3324.0,3.7338]
[1765382308141,4.63803928,3324.1,3324.0,0.526]
[1765382308747,1.6228,3323.7,3323.6,4.0776]
[1765382308934,3.2078,3324.2,3324.1,0.8698]
[1765382309134,3.21141912,3324.6,3324.1,0.8698]
[1765382309340,4.05791912,3324.6,3324.5,2.2788]
[1765382309737,3.21141912,3324.6,3324.5,2.2788]
[1765382310348,4.05791912,3324.6,3324.5,2.2788]
[1765382310647,4.91751912,3324.6,3324.5,0.5589]
[1765382313554,4.05791912,3324.6,3324.5,2.2788]
[1765382315353,3.21141912,3324.6,3324.5,2.2788]
[1765382316445,0.00361912,3324.6,3324.5,2.2788]
[1765382317451,3.2078,3325.0,3324.9,1.7199]
[1765382318556,3.21118053,3325.0,3324.9,1.72353974]
[1765382319449,0.00338053,3325.0,3324.9,2.79962762]
[1765382320355,0.00338053,3325.0,3324.9,1.72353974]
[1765382320554,1.60688053,3325.0,3324.9,3.21143974]
[1765382320760,0.80978053,3325.0,3324.9,6.00765543]
[1765382321056,0.00338053,3325.0,3324.9,6.00765543]
[1765382321258,0.00338053,3325.0,3324.9,4.93133974]
[1765382321653,0.00451046,3325.6,3325.5,2.2788]
[1765382321853,40.6,3326.5,3326.4,0.8698]
[1765382321854,4.7993,3326.5,3326.4,0.8698]
[1765382322053,4.7993,3326.5,3326.0,0.5589]
[1765382322657,1.573,3326.1,3326.0,2.2788]
[1765382323054,1.573,3326.1,3326.0,1.4287]
[1765382323262,1.5572,3325.8,3325.7,0.87431046]
[1765382323557,1.5572,3325.8,3325.7,2.80053462]
[1765382323558,0.7786,3325.8,3325.7,2.80053462]
[1765382323760,3.2078,3326.1,3326.0,2.2788]
[1765382323962,0.78311046,3326.4,3326.3,1.7199]
[1765382324452,1.56171046,3326.4,3326.3,1.7199]
[1765382325054,1.56171046,3326.4,3326.3,0.8698]
[1765382327169,0.78311046,3326.4,3326.3,1.7199]
[1765382327359,1.53421046,3326.4,3326.3,1.7199]
[1765382328063,0.78311046,3326.4,3326.3,1.7199]
[1765382328264,0.00451046,3326.4,3326.3,1.7199]
[1765382328466,0.00451046,3326.4,3326.3,6.00382416]
[1765382329463,0.00451046,3326.4,3326.3,4.9277]
[1765382329672,0.00451046,3326.4,3326.3,1.7199]
[1765382330066,3.93631046,3326.4,3326.3,1.7199]
[1765382330259,0.00451046,3326.4,3326.3,1.7199]
[1765382330867,1.43451046,3326.4,3326.3,1.7199]
[1765382331065,0.71951046,3326.4,3326.3,1.7199]
[1765382331261,0.00451046,3326.4,3326.3,4.9277]
[1765382331463,1.412,3326.1,3326.0,2.2788]
[1765382331655,0.00451046,3326.4,3326.3,1.7199]
[1765382331860,0.00451046,3326.4,3326.3,4.9277]
[1765382333461,1.046e-05,3326.4,3326.3,4.9277]
[1765382333768,0.00342541,3326.5,3326.4,1.7199]
[1765382334662,1.3676,3326.4,3326.3,3.2078]
[1765382335260,0.6838,3326.4,3326.3,4.9277]
[1765382335462,0.00342541,3326.5,3326.4,1.7199]
[1765382339765,0.00342541,3326.5,3326.4,4.30231464]
[1765382340974,0.00342541,3326.5,3326.4,1.07612416]
[1765382340975,2.81661589,3326.5,3326.4,1.07612416]
[1765382341172,2.77211589,3326.5,3326.4,1.602]
[1765382341670,2.77211589,3326.5,3326.4,0.8001]
[1765382341875,2.77211589,3326.5,3326.4,1.602]
[1765382342073,0.6226,3326.1,3326.0,2.1609]
[1765382342371,0.00342541,3326.5,3326.4,1.602]
[1765382345177,0.59162541,3326.5,3326.4,1.602]
[1765382345380,1.1764,3326.3,3326.0,1.63235973]
[1765382345682,0.5882,3326.3,3326.2,1.602]
[1765382346176,0.00342541,3326.5,3326.4,1.602]
[1765382346376,3.21231046,3326.8,3326.7,1.602]
[1765382346581,3.21231046,3326.8,3326.7,2.6783072]
[1765382347385,3.2156116,3326.8,3326.7,2.6783072]
[1765382348681,0.0078116,3326.8,3326.7,1.602]
[1765382349477,3.2078,3327.3,3327.2,1.6168]
[1765382349676,3.7621,3327.7,3327.6,1.6168]
[1765382349877,3.2078,3327.7,3327.6,1.6168]
[1765382350077,3.7621,3328.1,3328.0,2.0812]
[1765382350581,3.21073216,3328.1,3328.0,2.08504766]
[1765382351078,4.30253216,3328.1,3328.0,0.00384766]
[1765382351475,1.0774,3327.8,3327.7,0.00451046]
[1765382352489,1.0774,3327.8,3327.7,0.00665544]
[1765382357677,0.9658,3327.2,3327.1,1.07701726]
[1765382357883,0.9658,3327.1,3327.0,0.4644]
[1765382358092,0.4829,3327.1,3327.0,3.15821726]
[1765382358393,0.9658,3327.1,3327.0,3.15821726]
[1765382358690,0.9658,3327.1,3327.0,3.16174257]
[1765382360194,0.9658,3327.1,3327.0,1.54494257]
[1765382360390,0.9658,3327.1,3327.0,2.34264257]
[1765382360586,4.1266,3327.3,3327.2,1.6168]
[1765382361396,4.1266,3327.3,3327.0,1.54494257]
[1765382361696,0.9026,3327.1,3327.0,2.34264257]
[1765382362991,0.9026,3327.1,3327.0,0.46792531]
[1765382363294,0.9026,3327.1,3327.0,2.08472531]
[1765382365390,0.4513,3327.1,3327.0,3.16174257]
[1765382365894,3.6269,3327.3,3327.2,1.6168]
[1765382366089,4.046,3327.3,3327.2,1.6168]
[1765382366487,3.2078,3327.3,3327.2,1.6168]
[1765382366884,1.57233216,3328.1,3328.0,1.6168]
[1765382367084,1.57233216,3328.1,3328.0,2.0812]
[1765382367085,3.21073216,3328.1,3328.0,2.0812]
[1765382367283,3.21073216,3328.1,3328.0,3.16035184]
[1765382367491,0.00293216,3328.1,3328.0,3.16035184]
[1765382367689,0.00293216,3328.1,3328.0,3.69992776]
[1765382369201,0.00293216,3328.1,3328.0,2.0812]
[1765382369700,1.65483216,3328.1,3328.0,2.69447085]
[1765382369900,0.77613216,3328.1,3328.0,2.69447085]
[1765382370199,0.00293216,3328.1,3328.0,5.3113]
[1765382372998,0.00293216,3328.1,3328.0,6.92590359]
[1765382373602,1.83343216,3328.1,3328.0,6.43920359]
[1765382373799,1.83343216,3328.1,3328.0,5.2828]
[1765382373800,0.00293216,3328.1,3328.0,5.2828]
[1765382375508,0.00293216,3328.1,3328.0,6.89740359]
[1765382377105,3.2078,3329.4,3328.9,1.8111]
[1765382377305,1.8305,3329.2,3329.1,5.0189]
[1765382377704,1.9611,3329.5,3329.4,0.9346]
[1765382378105,1.96486983,3329.5,3329.4,0.93811926]
[1765382378307,1.83426983,3329.5,3329.4,1.81461926]
[1765382379006,0.00376983,3329.5,3329.4,1.81461926]
[1765382379212,0.95556983,3329.5,3329.4,1.81461926]
[1765382379409,0.00376983,3329.5,3329.4,1.81461926]
[1765382380616,0.95631046,3329.8,3329.7,1.8111]
[1765382380811,1.83501046,3329.8,3329.7,3.2078]
[1765382381409,1.8375769,3329.8,3329.7,4.1424]
[1765382381609,1.8375769,3329.8,3329.7,3.2078]
[1765382382010,1.8375769,3329.8,3329.7,5.0189]
[1765382382011,0.0070769,3329.8,3329.7,5.0189]
[1765382384912,0.9588769,3329.8,3329.7,5.0189]
[1765382385113,1.8375769,3329.8,3329.7,5.0189]
[1765382385308,0.9588769,3329.8,3329.7,5.0189]
[1765382385712,0.0070769,3329.8,3329.7,5.0189]
[1765382387013,3.2078,3330.9,3329.7,5.0189]
[1765382387215,0.9518,3330.2,3330.1,5.0189]
[1765382387416,1.8305,3330.2,3330.1,3.2078]
[1765382387617,1.8305,3329.8,3329.7,5.0189]
[1765382387816,0.9518,3329.8,3329.7,5.0189]
[1765382388017,0.95464595,3329.8,3329.7,5.0189]
[1765382388620,1.83334595,3329.8,3329.7,5.0189]
[1765382388822,1.83334595,3329.8,3329.7,4.1424]
[1765382389012,1.8305,3329.5,3329.4,0.93811926]
[1765382389218,1.8305,3329.5,3329.4,1.81461926]
[1765382389617,0.9518,3329.5,3329.4,1.81461926]
[1765382389813,1.8305,3329.5,3329.4,1.81461926]
[1765382390015,0.95464595,3329.8,3329.7,0.9346]
[1765382390219,1.83334595,3329.8,3329.7,0.9346]
[1765382391520,1.83334595,3329.8,3329.7,1.8111]
[1765382392027,1.83334595,3329.8,3329.7,0.9346]
[1765382393020,2.3816,3329.5,3329.4,0.00351926]
[1765382393225,2.3816,3329.5,3329.4,0.93811926]
[1765382393726,2.3816,3329.5,3329.4,0.00351926]
[1765382394124,2.3816,3329.5,3329.4,1.81461926]
[1765382394430,0.9518,3329.5,3329.4,1.81461926]
[1765382394627,1.8305,3329.5,3329.4,1.81461926]
[1765382395624,2.3816,3329.5,3329.4,0.00351926]
[1765382398133,2.3816,3329.5,3329.4,0.93811926]
[1765382398432,2.3816,3329.5,3329.4,0.80741926]
[1765382398629,0.9518,3329.5,3329.4,1.67781926]
[1765382399026,2.2795,3329.5,3329.4,0.80741926]
[1765382400133,2.2795,3329.5,3329.4,0.00351926]
[1765382400529,2.2795,3329.5,3329.4,0.80741926]
[1765382400729,2.2795,3329.5,3329.4,1.67781926]
[1765382401036,1.6413,3329.5,3329.4,1.67781926]
[1765382401536,2.1158,3329.5,3329.4,0.00351926]
[1765382401830,2.1158,3329.5,3329.4,0.80741926]
[1765382402030,2.1158,3329.5,3329.4,0.00351926]
[1765382402532,1.64414595,3329.8,3329.7,0.8039]
[1765382402727,0.00284595,3329.8,3329.7,1.6743]
[1765382402933,0.00284595,3329.8,3329.7,4.8821]
[1765382403227,1.64414595,3329.8,3329.7,4.8821]
[1765382403434,2.1158,3329.5,3329.4,0.00351926]
[1765382405535,1.6413,3329.2,3329.1,0.00451046]
[1765382405935,0.4745,3329.0,3328.2,4.8821]
[1765382406141,3.2078,3329.3,3329.2,1.6743]
[1765382406437,1.6413,3329.3,3329.2,1.6743]
[1765382406631,3.21064595,3329.8,3329.2,1.67741349]
[1765382406828,0.79094595,3329.8,3329.7,1.6743]
[1765382407031,1.64414595,3329.8,3329.7,1.6743]
[1765382407435,1.64414595,3329.8,3329.7,0.8039]
[1765382407839,0.7881,3329.5,3329.4,4.88661046]
[1765382408040,0.00284595,3329.8,3329.7,1.6743]
[1765382408229,1.64414595,3329.8,3329.4,3.21231046]
[1765382408432,2.1158,3329.5,3329.4,0.00451046]
[1765382409537,1.6413,3329.3,3329.2,0.00311349]
[1765382409737,0.7881,3329.3,3329.2,0.80701349]
[1765382409945,1.6413,3329.3,3329.2,0.80701349]
[1765382410131,0.00284595,3329.8,3329.7,1.6031]
[1765382410338,0.8176,3330.5,3330.4,1.6031]
[1765382410534,2.0869,3330.5,3329.9,3.2078]
[1765382410735,0.8176,3330.0,3329.9,4.8109]
[1765382411134,1.6098,3330.0,3329.9,4.8109]
[1765382411336,1.6098,3330.0,3329.6,0.00451046]
[1765382411337,2.09036248,3330.0,3329.6,0.00451046]
[1765382411541,2.09036248,3330.0,3329.7,1.07791019]
[1765382411542,1.6098,3329.9,3329.7,1.07791019]
[1765382411736,1.6098,3329.7,3329.6,0.00451046]
[1765382415140,1.6098,3328.8,3328.7,1.07791019]
[1765382415337,0.8176,3328.7,3328.6,5.88881019]
[1765382415534,0.4771,3329.0,3328.9,0.7959]
[1765382415535,2.0869,3329.0,3328.9,0.7959]
[1765382415938,2.0869,3329.0,3328.6,1.07791019]
[1765382416145,2.0869,3329.0,3327.6,3.2078]
[1765382416146,2.0869,3328.0,3327.9,1.61686528]
[1765382416437,0.8176,3327.7,3327.6,1.60761046]
[1765382416636,4.5025,3328.0,3327.9,0.7959]
[1765382417035,2.0869,3328.0,3327.9,0.7959]
[1765382417240,0.00451046,3328.3,3327.6,0.00819931]
[1765382417241,0.82211046,3328.3,3328.2,0.7959]
[1765382417436,1.61431046,3328.3,3327.6,3.21599931]
[1765382417633,0.00451046,3328.3,3328.2,1.6031]
[1765382417842,0.82211046,3328.3,3328.2,0.7959]
[1765382418043,1.61431046,3328.3,3327.6,4.83286459]
[1765382418746,0.00451046,3328.3,3328.2,1.6031]
[1765382419042,1.61431046,3328.3,3327.7,1.61686528]
[1765382419246,0.82211046,3328.3,3328.2,0.7959]
[1765382419450,1.61431046,3328.3,3328.2,0.7959]
[1765382419642,1.61431046,3328.3,3327.6,4.83286459]
[1765382419942,1.61431046,3328.3,3327.6,3.21599931]
[1765382421338,0.82211046,3328.3,3328.2,0.7959]
[1765382421740,1.61431046,3328.3,3327.6,3.21599931]
[1765382423745,0.82211046,3328.3,3328.2,0.7959]
[1765382423946,0.82211046,3328.3,3328.2,1.6031]
[1765382424240,1.61431046,3328.3,3327.6,3.21599931]
[1765382424945,1.61431046,3328.3,3327.6,74.77969931]
[1765382426652,0.8176,3327.7,3327.6,74.77969931]
[1765382427248,0.00451046,3328.3,3327.6,74.77969931]
[1765382427443,0.82211046,3328.3,3328.2,1.6031]
[1765382427848,1.61431046,3328.3,3327.6,74.77969931]
[1765382428038,0.7807,3327.7,3327.6,74.77969931]
[1765382428645,0.00451046,3328.3,3327.6,74.77969931]
[1765382428852,1.53751046,3328.3,3328.2,0.7505]
[1765382429150,0.00451046,3328.3,3328.2,1.4932]
[1765382429543,0.78521046,3328.3,3328.2,4.701]
[1765382429745,1.53751046,3328.3,3328.2,3.2078]
[1765382429943,0.78521046,3328.3,3327.6,71.57189931]
[1765382430144,1.53751046,3328.3,3328.2,0.7505]
[1765382430340,0.7807,3328.0,3327.9,4.701]
[1765382430544,1.533,3328.0,3327.9,4.701]
[1765382430746,2.0065,3328.0,3327.6,71.57189931]
[1765382430950,1.533,3327.7,3327.6,71.57189931]
[1765382431849,0.7807,3327.7,3327.6,71.57189931]
[1765382432050,1.533,3327.7,3327.6,71.57189931]
[1765382432254,1.2542,3328.0,3327.9,0.7505]
[1765382432549,0.00451046,3328.3,3328.2,1.4932]
[1765382436053,1.53751046,3328.3,3328.2,0.7505]
[1765382436250,1.53751046,3328.3,3327.9,3.2078]
[1765382436452,1.533,3328.0,3327.9,3.2078]
[1765382436647,1.53751046,3328.3,3328.2,0.7505]
[1765382436853,0.00451046,3328.3,3328.2,1.4932]
[1765382437055,1.53751046,3328.3,3327.9,3.2078]
[1765382437253,1.53751046,3328.3,3327.9,3.9583]
[1765382437254,1.533,3328.0,3327.9,3.9583]
[1765382437455,2.0065,3328.0,3327.9,3.2078]
[1765382437654,2.0065,3328.0,3327.9,3.9583]
[1765382438060,0.78521046,3328.3,3328.2,0.7505]
[1765382438354,0.00451046,3328.3,3328.2,1.4932]
[1765382441159,0.00451046,3328.3,3328.2,3.11006528]
[1765382441461,0.78521046,3328.3,3328.2,3.11006528]
[1765382441656,0.00451046,3328.3,3328.2,3.11006528]
[1765382442762,0.00451046,3328.3,3328.2,1.4932]
[1765382442962,0.4771,3329.5,3328.2,1.4932]
[1765382442963,3.2078,3329.7,3329.4,1.4932]
[1765382443159,3.2078,3329.7,3329.6,1.4932]
[1765382443358,3.2078,3329.7,3329.2,3.2078]
[1765382443359,4.7408,3329.7,3329.2,3.2078]
[1765382443762,0.7807,3329.7,3329.6,1.4932]
[1765382444265,1.533,3329.7,3329.3,0.00451046]
[1765382444861,0.7807,3329.4,3329.3,1.49771046]
[1765382445156,0.00797294,3330.0,3329.3,1.49771046]
[1765382445362,0.00797294,3330.0,3329.9,1.4932]
[1765382446559,1.54097294,3330.0,3329.7,1.0765476]
[1765382446759,0.7807,3329.7,3329.6,5.7775476]
[1765382446959,1.533,3329.7,3329.5,1.0765476]
[1765382447160,1.533,3329.4,3329.3,1.83155806]
[1765382447467,1.533,3329.4,3329.3,0.75501046]
[1765382448062,0.48147294,3330.0,3329.3,1.49771046]
[1765382448263,3.2078,3330.2,3329.3,1.49771046]
[1765382448464,5.51004621,3330.3,3329.6,3.9583]
[1765382448659,5.51004621,3330.3,3329.6,3.2078]
[1765382449272,5.5181778,3330.3,3329.6,3.2078]
[1765382449472,5.5181778,3330.3,3329.6,3.9583]
[1765382450170,0.7807,3329.7,3329.6,3.9583]
[1765382450665,1.533,3329.7,3329.6,3.2078]
[1765382450870,1.533,3329.4,3329.3,0.81104725]
[1765382451172,1.533,3329.4,3329.3,0.00451046]
[1765382452364,0.4735,3330.0,3329.3,0.00451046]
[1765382452365,0.78883159,3330.3,3330.2,0.7505]
[1765382452561,0.1501,3331.2,3330.2,4.70463389]
[1765382452771,1.533,3330.8,3330.7,3.2078]
[1765382453474,1.53651297,3330.8,3330.7,3.2078]
[1765382454871,1.53651297,3330.8,3330.3,3.2078]
[1765382456369,1.53651297,3330.8,3330.7,3.2078]
[1765382457072,0.78421297,3330.8,3330.7,4.701]
[1765382457966,4.3324,3331.3,3331.2,8.6155]
[1765382458171,0.15007,3331.8,3331.2,11.8233]
[1765382458371,0.15007,3331.8,3331.2,11.82780334]
[1765382458773,4.3324,3331.7,3331.6,7.481]
[1765382458968,8.70411775,3331.7,3331.6,7.481]
[1765382459172,8.70411775,3331.7,3331.6,3.2078]
[1765382459366,4.33461775,3331.7,3331.6,11.8233]
[1765382459570,0.62354,3332.5,3331.6,11.8233]
[1765382459571,4.3324,3332.5,3332.4,4.2732]
[1765382459776,8.7019,3332.4,3332.3,3.2078]
[1765382460676,8.7019,3332.4,3331.5,3.29727996]
[1765382460677,8.7019,3331.8,3331.7,7.481]
[1765382460878,4.3324,3331.8,3331.7,11.8233]
[1765382461071,0.00379089,3332.4,3331.7,11.8233]
[1765382461268,2.3060371,3332.4,3331.7,11.8233]
[1765382461474,7.54399089,3332.4,3332.3,4.2732]
[1765382461671,14.2157371,3332.4,3331.7,3.2078]
[1765382461872,4.3324,3331.8,3331.7,7.481]
[1765382462067,4.3324,3331.8,3331.7,11.8233]
[1765382462265,4.3324,3331.8,3331.7,7.481]
[1765382462471,5.6638771,3332.4,3331.7,11.8233]
[1765382463173,8.7019,3331.8,3331.7,3.2078]
[1765382464177,4.3324,3331.8,3331.7,7.481]
[1765382464372,4.3695,3331.4,3331.3,3.2078]
[1765382464681,8.7019,3331.4,3331.3,3.2078]
[1765382464879,4.3324,3331.4,3331.3,11.8233]
[1765382465177,8.7019,3331.4,3331.3,3.2078]
[1765382466378,4.3324,3330.3,3330.2,4.27683389]
[1765382466586,0.15011,3330.8,3330.2,11.82693389]
[1765382466770,3.35788,3331.5,3330.7,11.8233]
[1765382467379,0.00447964,3331.4,3330.8,0.00450334]
[1765382467777,0.00447964,3331.4,3331.3,8.6155]
[1765382469381,8.25517964,3331.4,3331.3,4.2732]
[1765382469579,3.9115,3331.3,3331.2,3.2078]
[1765382469783,3.9115,3331.3,3331.2,7.3107]
[1765382469979,3.9115,3331.3,3331.2,11.4295]
[1765382470376,7.8298,3331.3,3331.2,7.3107]
[1765382470580,7.8298,3331.3,3330.8,0.00450334]
[1765382470581,7.8298,3331.3,3330.8,3.21230334]
[1765382471181,0.00447964,3331.4,3331.3,8.2217]
[1765382472386,0.00447964,3331.4,3331.0,2.5087]
[1765382472387,7.8298,3331.3,3331.0,2.5087]
[1765382472778,0.00447964,3331.4,3331.2,8.2217]
[1765382472980,0.00447964,3331.4,3331.3,8.2217]
[1765382473177,3.91597964,3331.4,3331.3,8.2217]
[1765382473581,0.00447964,3331.4,3331.3,11.4295]
[1765382475984,3.2078,3332.1,3332.0,10.6401]
[1765382476181,3.91529089,3332.4,3332.3,4.1029]
[1765382476381,7.83359089,3332.4,3332.0,2.4184]
[1765382477688,7.8298,3332.1,3332.0,4.1029]
[1765382477985,3.91529089,3332.4,3332.3,4.1029]
[1765382478183,3.9115,3331.9,3331.8,7.3107]
[1765382478389,0.00379089,3332.4,3331.8,11.4295]
[1765382479092,7.83359089,3332.4,3331.8,3.2078]
[1765382479283,0.00379089,3332.4,3331.8,11.4295]
[1765382479684,3.91529089,3332.4,3332.3,8.2217]
[1765382480288,7.83359089,3332.4,3332.3,4.1029]
[1765382480489,0.00379089,3332.4,3332.3,8.2217]
[1765382480981,3.91529089,3332.4,3332.3,8.2217]
[1765382481184,7.83359089,3332.4,3332.0,2.5087]
[1765382481386,7.8298,3332.1,3332.0,4.1029]
[1765382481589,3.9115,3331.9,3331.8,11.4295]
[1765382482190,2.3191,3332.0,3331.6,0.80627996]
[1765382482490,2.3191,3332.0,3331.2,1.61626206]
[1765382482491,3.9115,3331.3,3331.2,8.2217]
[1765382483395,7.8298,3331.2,3331.1,3.2078]
[1765382483596,3.9115,3331.2,3331.1,11.4295]
[1765382484496,7.8298,3331.2,3331.1,3.2078]
[1765382484793,7.8298,3330.9,3330.8,0.00450334]
[1765382485193,7.97991,3330.9,3330.8,0.00450334]
[1765382486886,0.15011,3330.9,3330.8,8.22620334]
[1765382487500,4.06161,3330.9,3330.8,8.22620334]
[1765382487792,3.2078,3331.2,3331.1,4.1029]
[1765382487793,7.1193,3331.2,3331.1,4.1029]
[1765382487993,3.2078,3331.2,3331.1,7.7415]
[1765382488193,3.2078,3331.6,3331.1,7.7415]
[1765382488398,3.90739094,3331.5,3331.4,3.8329]
[1765382488891,3.6583,3330.9,3330.8,3.83740334]
[1765382489199,7.479,3330.9,3330.8,0.00450334]
[1765382489792,7.479,3330.9,3330.2,3.21143389]
[1765382489793,7.479,3330.3,3330.2,3.21143389]
[1765382490194,2.51807475,3330.6,3330.2,10.68293389]
[1765382490398,0.15012,3330.7,3330.2,10.68293389]
[1765382490593,0.15012,3330.7,3330.6,3.8329]
[1765382490802,7.62912,3330.7,3330.3,0.00450334]
[1765382491001,3.80842,3330.7,3330.6,3.8329]
[1765382491498,0.00450333,3331.0,3330.9,7.4715]
[1765382493899,0.00379089,3332.4,3330.9,13.4715]
[1765382494105,0.25268053,3332.4,3331.8,5.443]
[1765382495099,0.25268053,3332.4,3332.3,3.8329]
[1765382495304,0.00379089,3332.4,3332.3,3.8329]
[1765382495606,3.66209089,3332.4,3332.3,3.8329]
[1765382496006,0.00379089,3332.4,3332.3,7.4715]
[1765382499113,3.6583,3332.3,3332.2,7.0407]
[1765382499308,3.6583,3332.3,3332.2,3.2078]
[1765382499511,3.6583,3332.3,3332.2,10.6793]
[1765382499712,0.00379089,3332.4,3332.3,3.8329]
[1765382499919,3.66209089,3332.4,3332.3,3.8329]
[1765382500314,0.00379089,3332.4,3332.3,7.4715]
[1765382500621,3.66209089,3332.4,3332.3,7.4715]
[1765382501016,7.479,3332.3,3332.2,3.2078]
[1765382501217,7.479,3332.1,3332.0,0.00450334]
[1765382501623,7.479,3332.1,3332.0,3.83740334]
[1765382502017,0.00379089,3332.4,3332.0,3.83740334]
[1765382502018,3.66209089,3332.4,3332.3,7.4715]
[1765382502418,7.479,3332.3,3332.2,3.2078]
[1765382502622,7.479,3332.1,3332.0,0.00450334]
[1765382504117,7.62905,3332.1,3332.0,0.00450334]
[1765382504319,7.62905,3332.1,3330.8,3.2078]
[1765382504320,7.479,3331.4,3330.8,3.2078]
[1765382504521,7.479,3330.9,3330.8,2.88565293]
[1765382505218,7.479,3330.3,3330.2,0.00363389]
[1765382505417,8.66818475,3330.9,3330.2,7.47513389]
[1765382505418,0.15011,3330.9,3330.2,7.47513389]
[1765382506024,3.2078,3331.0,3330.2,7.47513389]
[1765382507228,3.2078,3330.6,3330.2,7.47513389]
[1765382508326,3.2078,3330.6,3330.5,3.8329]
[1765382508527,3.2078,3331.0,3330.5,7.4715]
[1765382508728,3.6583,3330.6,3330.5,3.8329]
[1765382509124,10.6868,3330.6,3330.2,0.00363389]
[1765382509328,7.479,3330.3,3330.2,0.00363389]
[1765382509831,3.6583,3330.3,3330.2,3.83653389]
[1765382510031,7.479,3330.3,3330.2,0.00363389]
[1765382510326,7.479,3330.3,3329.9,0.23337334]
[1765382510327,9.97665,3330.0,3329.9,0.23337334]
[1765382510630,3.6583,3329.1,3328.5,2.2352]
[1765382511228,3.2078,3329.3,3329.2,7.4715]
[1765382511527,0.00380172,3329.3,3329.2,7.4715]
[1765382512928,7.479,3329.0,3328.9,0.00450334]
[1765382513531,7.479,3329.0,3328.5,2.23804701]
[1765382513532,7.479,3328.6,3328.5,0.00284701]
[1765382513731,13.20487475,3328.6,3327.6,3.2078]
[1765382513923,3.2078,3328.1,3327.6,3.2078]
[1765382514633,3.2078,3328.1,3327.6,3.21153267]
[1765382515139,3.2078,3328.1,3328.0,7.4715]
[1765382515529,3.2078,3328.7,3328.0,10.6793]
[1765382515929,3.2078,3328.7,3328.6,7.4715]